[Event "*** Qualifier 4: Titled Tuesday 3|2 Blitz"]
[Site "Chess.com"]
[Date "2017.04.25"]
[Round "4"]
[White "Blitzstream"]
[Black "GMOratovsky"]
[Result "0-1"]
[WhiteElo "2431"]
[BlackElo "2334"]
[TimeControl "180+2"]
[EndTime "13:48:24 PDT"]
[Termination "GMOratovsky won by checkmate"]

1. g3 {[%clk 0:03:02]} 1... e5 {[%clk 0:03:00.1]} 2. Bg2 {[%clk 0:03:03.3]} 2...
Nf6 {[%clk 0:03:01.2]} 3. b3 {[%clk 0:03:04.5]} 3... Nc6 {[%clk 0:02:59.8]} 4.
Bb2 {[%clk 0:03:05.6]} 4... d5 {[%clk 0:03:01.3]} 5. e3 {[%clk 0:03:07]} 5...
Bd6 {[%clk 0:03:02.6]} 6. Ne2 {[%clk 0:03:08.5]} 6... O-O {[%clk 0:03:03.9]} 7.
d3 {[%clk 0:03:10]} 7... Qe7 {[%clk 0:03:05.2]} 8. Nd2 {[%clk 0:03:11.3]} 8...
Re8 {[%clk 0:03:05.9]} 9. h3 {[%clk 0:03:11.5]} 9... a5 {[%clk 0:03:04]} 10. a3
{[%clk 0:03:12.7]} 10... Bf5 {[%clk 0:02:46.7]} 11. O-O {[%clk 0:03:02.6]} 11...
Bg6 {[%clk 0:02:45.2]} 12. Kh2 {[%clk 0:03:02.4]} 12... Rad8 {[%clk 0:02:45.2]}
13. Ng1 {[%clk 0:02:30.8]} 13... e4 {[%clk 0:02:45.4]} 14. d4 {[%clk 0:02:29.8]}
14... h5 {[%clk 0:02:36.5]} 15. Ne2 {[%clk 0:02:28.3]} 15... h4 {[%clk
0:02:36.7]} 16. Nf4 {[%clk 0:02:27.5]} 16... Bf5 {[%clk 0:02:23.5]} 17. Rg1
{[%clk 0:02:16]} 17... g5 {[%clk 0:02:20.8]} 18. Nh5 {[%clk 0:02:16.9]} 18...
Bg6 {[%clk 0:02:17.6]} 19. Nxf6+ {[%clk 0:02:13.6]} 19... Qxf6 {[%clk
0:02:19.5]} 20. Qe2 {[%clk 0:02:13]} 20... Ne7 {[%clk 0:02:13.1]} 21. c4 {[%clk
0:02:05.1]} 21... Nf5 {[%clk 0:02:03.2]} 22. Nf1 {[%clk 0:02:03.8]} 22... c6
{[%clk 0:01:58.2]} 23. Rc1 {[%clk 0:02:03.1]} 23... Kg7 {[%clk 0:01:57.4]} 24.
cxd5 {[%clk 0:01:46]} 24... cxd5 {[%clk 0:01:59.3]} 25. Rc5 {[%clk 0:01:28.8]}
25... b6 {[%clk 0:01:51]} 26. Rxd5 {[%clk 0:00:59.8]} 26... hxg3+ {[%clk
0:01:46.5]} 27. fxg3 {[%clk 0:00:44.1]} 27... Nxg3 {[%clk 0:01:37.8]} 28. Rxd6
{[%clk 0:00:26.3]} 28... Nxf1+ {[%clk 0:01:34.4]} 29. Rxf1 {[%clk 0:00:24]}
29... Qxd6+ {[%clk 0:01:34.2]} 30. Kh1 {[%clk 0:00:25.6]} 30... Qd5 {[%clk
0:01:25.9]} 31. Qg4 {[%clk 0:00:24.9]} 31... Rh8 {[%clk 0:01:19.9]} 32. Rf2
{[%clk 0:00:22.4]} 32... Rh4 {[%clk 0:01:19.8]} 33. Qg3 {[%clk 0:00:21.6]} 33...
Rdh8 {[%clk 0:01:17.3]} 34. Kg1 {[%clk 0:00:22.1]} 34... f6 {[%clk 0:01:11.3]}
35. Qc7+ {[%clk 0:00:22.8]} 35... Bf7 {[%clk 0:01:09.6]} 36. Bf1 {[%clk
0:00:23.3]} 36... b5 {[%clk 0:00:55.4]} 37. a4 {[%clk 0:00:23.2]} 37... Rxh3
{[%clk 0:00:55.9]} 38. Bxh3 {[%clk 0:00:17]} 38... Rxh3 {[%clk 0:00:57.8]} 39.
axb5 {[%clk 0:00:17.5]} 39... Qe6 {[%clk 0:00:59.1]} 40. d5 {[%clk 0:00:05.1]}
40... Qg4+ {[%clk 0:00:58]} 41. Rg2 {[%clk 0:00:05.1]} 41... Qd1+ {[%clk
0:00:58.2]} 42. Kf2 {[%clk 0:00:06.6]} 42... Rf3# {[%clk 0:00:59.1]} 0-1

[Event "*** Qualifier 4: Titled Tuesday 3|2 Blitz"]
[Site "Chess.com"]
[Date "2017.04.25"]
[Round "4"]
[White "roldieyi"]
[Black "MorpheusPro"]
[Result "0-1"]
[WhiteElo "2111"]
[BlackElo "2042"]
[TimeControl "180+2"]
[EndTime "13:48:28 PDT"]
[Termination "MorpheusPro won on time"]

1. d4 {[%clk 0:02:58.5]} 1... d5 {[%clk 0:03:00.2]} 2. Nf3 {[%clk 0:02:59.5]}
2... Nf6 {[%clk 0:03:01.1]} 3. c4 {[%clk 0:02:59.5]} 3... c6 {[%clk 0:03:00.7]}
4. Nc3 {[%clk 0:02:59.4]} 4... a6 {[%clk 0:03:01.3]} 5. Bf4 {[%clk 0:02:56]}
5... Bf5 {[%clk 0:03:00.8]} 6. c5 {[%clk 0:02:55.8]} 6... Nbd7 {[%clk
0:03:00.5]} 7. e3 {[%clk 0:02:56.1]} 7... e6 {[%clk 0:02:58.2]} 8. Bd3 {[%clk
0:02:46.2]} 8... Bxd3 {[%clk 0:02:55.2]} 9. Qxd3 {[%clk 0:02:44.5]} 9... Be7
{[%clk 0:02:56.3]} 10. O-O {[%clk 0:02:44.4]} 10... O-O {[%clk 0:02:56.6]} 11.
b4 {[%clk 0:02:44.6]} 11... Qc8 {[%clk 0:02:55.8]} 12. h3 {[%clk 0:02:44.5]}
12... Bd8 {[%clk 0:02:56.4]} 13. a4 {[%clk 0:02:33.7]} 13... Bc7 {[%clk
0:02:57]} 14. Bxc7 {[%clk 0:02:33]} 14... Qxc7 {[%clk 0:02:57.4]} 15. b5 {[%clk
0:02:33.2]} 15... a5 {[%clk 0:02:52.4]} 16. b6 {[%clk 0:02:33.1]} 16... Qb8
{[%clk 0:02:50.5]} 17. e4 {[%clk 0:02:25]} 17... dxe4 {[%clk 0:02:47.9]} 18.
Nxe4 {[%clk 0:02:25.1]} 18... Nxe4 {[%clk 0:02:46.5]} 19. Qxe4 {[%clk
0:02:07.1]} 19... Nf6 {[%clk 0:02:43.5]} 20. Qe3 {[%clk 0:01:58.6]} 20... Nd5
{[%clk 0:02:38.3]} 21. Qd2 {[%clk 0:01:55.2]} 21... Qf4 {[%clk 0:02:35.2]} 22.
Qxf4 {[%clk 0:01:50.3]} 22... Nxf4 {[%clk 0:02:35.5]} 23. Rfd1 {[%clk
0:01:48.6]} 23... Rad8 {[%clk 0:02:33.8]} 24. Kf1 {[%clk 0:01:43.1]} 24... Rd5
{[%clk 0:02:29.2]} 25. g3 {[%clk 0:01:15.5]} 25... Nxh3 {[%clk 0:02:17]} 26. Kg2
{[%clk 0:01:15]} 26... Ng5 {[%clk 0:02:16.8]} 27. Nxg5 {[%clk 0:00:52.8]} 27...
Rxg5 {[%clk 0:02:16.8]} 28. f4 {[%clk 0:00:51.9]} 28... Rd5 {[%clk 0:02:16.6]}
29. Kf3 {[%clk 0:00:50.2]} 29... Rfd8 {[%clk 0:02:17]} 30. Ke3 {[%clk
0:00:48.3]} 30... f6 {[%clk 0:02:15.4]} 31. Ra2 {[%clk 0:00:30]} 31... Rxc5
{[%clk 0:02:09.6]} 32. Re2 {[%clk 0:00:16.6]} 32... Rc4 {[%clk 0:01:50.8]} 33.
Kf3 {[%clk 0:00:13.9]} 33... Kf7 {[%clk 0:01:47]} 34. Rde1 {[%clk 0:00:14]}
34... Rd6 {[%clk 0:01:32.1]} 0-1

[Event "*** Qualifier 4: Titled Tuesday 3|2 Blitz"]
[Site "Chess.com"]
[Date "2017.04.25"]
[Round "4"]
[White "Rock700chess"]
[Black "GM_Huschenbeth"]
[Result "0-1"]
[WhiteElo "2284"]
[BlackElo "2340"]
[TimeControl "180+2"]
[EndTime "13:49:01 PDT"]
[Termination "GM_Huschenbeth won by resignation"]

1. e4 {[%clk 0:03:02]} 1... c5 {[%clk 0:03:01.5]} 2. d4 {[%clk 0:03:02.8]} 2...
d6 {[%clk 0:03:03.4]} 3. Nf3 {[%clk 0:03:03.3]} 3... cxd4 {[%clk 0:03:03.6]} 4.
c3 {[%clk 0:03:04.7]} 4... Nf6 {[%clk 0:03:00.4]} 5. Bd3 {[%clk 0:03:04.6]} 5...
dxc3 {[%clk 0:02:59.7]} 6. Nxc3 {[%clk 0:03:06.5]} 6... Nc6 {[%clk 0:03:01]} 7.
O-O {[%clk 0:03:07.6]} 7... g6 {[%clk 0:03:00.9]} 8. h3 {[%clk 0:03:08.3]} 8...
Bg7 {[%clk 0:03:01.9]} 9. Qe2 {[%clk 0:03:09.5]} 9... O-O {[%clk 0:03:02.7]} 10.
Rd1 {[%clk 0:03:10.5]} 10... Bd7 {[%clk 0:02:57.2]} 11. Bc4 {[%clk 0:03:11.3]}
11... Rc8 {[%clk 0:02:56.6]} 12. Be3 {[%clk 0:03:09.2]} 12... Na5 {[%clk
0:02:51.3]} 13. Bb3 {[%clk 0:03:08.1]} 13... Nxb3 {[%clk 0:02:46.3]} 14. axb3
{[%clk 0:03:10]} 14... a6 {[%clk 0:02:47.9]} 15. Rac1 {[%clk 0:03:08.9]} 15...
Qa5 {[%clk 0:02:38.2]} 16. Bg5 {[%clk 0:02:18]} 16... Be6 {[%clk 0:02:33.8]} 17.
Nd5 {[%clk 0:01:51.6]} 17... Bxd5 {[%clk 0:02:20.1]} 18. exd5 {[%clk 0:01:49.4]}
18... Rxc1 {[%clk 0:02:01.9]} 19. Rxc1 {[%clk 0:01:44.4]} 19... Nxd5 {[%clk
0:02:03.5]} 20. Bd2 {[%clk 0:01:37.4]} 20... Qb5 {[%clk 0:01:54.3]} 21. Qd1
{[%clk 0:00:21.1]} 21... Bxb2 {[%clk 0:01:52.9]} 22. Rb1 {[%clk 0:00:21.7]}
22... Bg7 {[%clk 0:01:51.9]} 23. Qc2 {[%clk 0:00:22.1]} 23... Qc6 {[%clk
0:01:49.7]} 24. Qd1 {[%clk 0:00:22.7]} 24... Rc8 {[%clk 0:01:38.8]} 25. Rc1
{[%clk 0:00:22.4]} 25... Qd7 {[%clk 0:01:40.1]} 26. Rb1 {[%clk 0:00:23.6]} 26...
Nc3 {[%clk 0:01:40]} 27. Bxc3 {[%clk 0:00:24.5]} 27... Rxc3 {[%clk 0:01:41.8]}
28. Qd2 {[%clk 0:00:24.9]} 28... Qc6 {[%clk 0:01:29.5]} 29. Re1 {[%clk
0:00:24.9]} 29... e6 {[%clk 0:01:15.2]} 30. Qa2 {[%clk 0:00:22.1]} 30... Rc1
{[%clk 0:01:13.7]} 31. Rxc1 {[%clk 0:00:12.8]} 31... Qxc1+ {[%clk 0:01:15.6]}
32. Kh2 {[%clk 0:00:13]} 32... d5 {[%clk 0:01:17.5]} 33. Qa4 {[%clk 0:00:08.1]}
33... Qc6 {[%clk 0:01:15.5]} 34. Qa3 {[%clk 0:00:07.4]} 34... d4 {[%clk
0:01:13.7]} 35. Qe7 {[%clk 0:00:07.2]} 35... Qc8 {[%clk 0:00:51.3]} 36. Qb4
{[%clk 0:00:04.3]} 36... Qc7+ {[%clk 0:00:45.1]} 37. g3 {[%clk 0:00:04.8]} 37...
Qd7 {[%clk 0:00:38.1]} 38. Kg2 {[%clk 0:00:05.5]} 38... h6 {[%clk 0:00:39.1]}
39. Qd2 {[%clk 0:00:06.3]} 39... e5 {[%clk 0:00:40.2]} 40. Qe2 {[%clk
0:00:06.8]} 40... Qd5 {[%clk 0:00:40.9]} 41. Qd2 {[%clk 0:00:05.4]} 41... Qxb3
{[%clk 0:00:40.3]} 42. Qe1 {[%clk 0:00:05.1]} 42... Qd5 {[%clk 0:00:41.2]} 43.
Qd1 {[%clk 0:00:05]} 43... b5 {[%clk 0:00:41.7]} 44. Kh2 {[%clk 0:00:04.7]}
44... e4 {[%clk 0:00:42.2]} 45. Nd2 {[%clk 0:00:05.8]} 45... e3 {[%clk
0:00:42.6]} 46. fxe3 {[%clk 0:00:06.6]} 46... dxe3 {[%clk 0:00:44.5]} 0-1

[Event "*** Qualifier 4: Titled Tuesday 3|2 Blitz"]
[Site "Chess.com"]
[Date "2017.04.25"]
[Round "4"]
[White "GulamaliRises"]
[Black "woodhy"]
[Result "0-1"]
[WhiteElo "2470"]
[BlackElo "2397"]
[TimeControl "180+2"]
[EndTime "13:49:08 PDT"]
[Termination "woodhy won by checkmate"]

1. e4 {[%clk 0:03:02]} 1... e6 {[%clk 0:03:00.7]} 2. d4 {[%clk 0:03:01]} 2... d5
{[%clk 0:03:01.4]} 3. Nc3 {[%clk 0:03:00.8]} 3... Bb4 {[%clk 0:03:01.8]} 4. e5
{[%clk 0:03:02.2]} 4... c5 {[%clk 0:03:02.6]} 5. Bd2 {[%clk 0:03:03.7]} 5... Ne7
{[%clk 0:03:03.4]} 6. Nb5 {[%clk 0:02:55.2]} 6... Bxd2+ {[%clk 0:03:02.9]} 7.
Qxd2 {[%clk 0:02:57.1]} 7... O-O {[%clk 0:03:03.1]} 8. f4 {[%clk 0:02:58.3]}
8... cxd4 {[%clk 0:03:01.8]} 9. Nf3 {[%clk 0:02:59.5]} 9... Nbc6 {[%clk
0:03:03.7]} 10. Bd3 {[%clk 0:03:00.4]} 10... f5 {[%clk 0:02:55.1]} 11. O-O
{[%clk 0:02:45.2]} 11... Qb6 {[%clk 0:02:52]} 12. Qf2 {[%clk 0:02:36.5]} 12...
a6 {[%clk 0:02:41.7]} 13. Nd6 {[%clk 0:02:37.1]} 13... Bd7 {[%clk 0:02:07.9]}
14. g4 {[%clk 0:02:32.4]} 14... Nb4 {[%clk 0:01:58]} 15. Qxd4 {[%clk 0:01:30.7]}
15... Qxd4+ {[%clk 0:01:49.2]} 16. Nxd4 {[%clk 0:01:32.6]} 16... Nxd3 {[%clk
0:01:46.7]} 17. cxd3 {[%clk 0:01:34.5]} 17... fxg4 {[%clk 0:01:48.6]} 18. Nxb7
{[%clk 0:01:35.8]} 18... Nf5 {[%clk 0:01:27.7]} 19. Nxf5 {[%clk 0:01:29.3]}
19... Rxf5 {[%clk 0:01:29.6]} 20. Nd6 {[%clk 0:01:27.3]} 20... Rff8 {[%clk
0:01:27.3]} 21. d4 {[%clk 0:01:26.9]} 21... Rab8 {[%clk 0:01:27.3]} 22. b3
{[%clk 0:01:23.8]} 22... Bb5 {[%clk 0:01:24.9]} 23. Rf2 {[%clk 0:01:22.9]} 23...
Bd3 {[%clk 0:01:10.2]} 24. Rc1 {[%clk 0:01:22.3]} 24... Rb4 {[%clk 0:01:10]} 25.
Rd1 {[%clk 0:01:13.3]} 25... Bg6 {[%clk 0:01:00.8]} 26. Kg2 {[%clk 0:01:14.3]}
26... a5 {[%clk 0:00:56.2]} 27. Kg3 {[%clk 0:01:15.4]} 27... a4 {[%clk
0:00:53.2]} 28. Rb2 {[%clk 0:01:13.9]} 28... h5 {[%clk 0:00:48.8]} 29. Kh4
{[%clk 0:00:53.9]} 29... Kh7 {[%clk 0:00:36.6]} 30. Kg5 {[%clk 0:00:55.1]} 30...
Rfb8 {[%clk 0:00:34.3]} 31. Rf2 {[%clk 0:00:27]} 31... axb3 {[%clk 0:00:34.6]}
32. axb3 {[%clk 0:00:28.9]} 32... Rxb3 {[%clk 0:00:34.4]} 33. Re1 {[%clk
0:00:29.4]} 33... g3 {[%clk 0:00:29.6]} 34. Rg2 {[%clk 0:00:22.3]} 34... gxh2
{[%clk 0:00:28.1]} 35. Rh1 {[%clk 0:00:17.4]} 35... Rd3 {[%clk 0:00:21.5]} 36.
Rhxh2 {[%clk 0:00:17.5]} 36... Rxd4 {[%clk 0:00:23]} 37. f5 {[%clk 0:00:17.8]}
37... exf5 {[%clk 0:00:24.9]} 38. e6 {[%clk 0:00:19]} 38... Rbb4 {[%clk
0:00:21.5]} 39. Rxh5+ {[%clk 0:00:15.5]} 39... Bxh5 {[%clk 0:00:23.4]} 40. Kxh5
{[%clk 0:00:14.6]} 40... Rg4 {[%clk 0:00:23.3]} 41. e7 {[%clk 0:00:11.2]} 41...
g6# {[%clk 0:00:23.4]} 0-1

[Event "*** Qualifier 4: Titled Tuesday 3|2 Blitz"]
[Site "Chess.com"]
[Date "2017.04.25"]
[Round "4"]
[White "Ibtihal24"]
[Black "rithwik2002"]
[Result "0-1"]
[WhiteElo "1476"]
[BlackElo "1801"]
[TimeControl "180+2"]
[EndTime "13:49:11 PDT"]
[Termination "rithwik2002 won on time"]

1. d4 {[%clk 0:02:57.2]} 1... Nf6 {[%clk 0:02:59.9]} 2. Bf4 {[%clk 0:02:56.3]}
2... d5 {[%clk 0:02:44.3]} 3. Nd2 {[%clk 0:02:55.5]} 3... c5 {[%clk 0:02:43]} 4.
c3 {[%clk 0:02:54.3]} 4... Nc6 {[%clk 0:02:42.6]} 5. Ngf3 {[%clk 0:02:53]} 5...
e6 {[%clk 0:02:39.2]} 6. h3 {[%clk 0:02:48.5]} 6... Bd6 {[%clk 0:02:31.8]} 7.
Bg5 {[%clk 0:02:47.8]} 7... h6 {[%clk 0:02:29.8]} 8. Bh4 {[%clk 0:02:47.3]} 8...
g5 {[%clk 0:02:26.1]} 9. Bg3 {[%clk 0:02:39.3]} 9... Bxg3 {[%clk 0:02:26.3]} 10.
fxg3 {[%clk 0:02:39.8]} 10... Qc7 {[%clk 0:02:11.9]} 11. e3 {[%clk 0:02:36.2]}
11... Qxg3+ {[%clk 0:02:09.2]} 12. Ke2 {[%clk 0:02:29.9]} 12... b6 {[%clk
0:01:12.6]} 13. Qe1 {[%clk 0:02:23.7]} 13... Qd6 {[%clk 0:00:55.7]} 14. g4
{[%clk 0:02:08.5]} 14... e5 {[%clk 0:00:39.3]} 15. dxe5 {[%clk 0:02:00.4]} 15...
Nxe5 {[%clk 0:00:38]} 16. Bg2 {[%clk 0:01:52.5]} 16... Ba6+ {[%clk 0:00:36.7]}
17. Kd1 {[%clk 0:01:49]} 17... Nd3 {[%clk 0:00:37.6]} 18. Qg1 {[%clk 0:01:27.9]}
18... Nxb2+ {[%clk 0:00:36.5]} 19. Kc2 {[%clk 0:01:26.3]} 19... Nc4 {[%clk
0:00:19.4]} 20. Nxc4 {[%clk 0:01:17.2]} 20... Bxc4 {[%clk 0:00:21.3]} 21. Qd1
{[%clk 0:00:55]} 21... Ne4 {[%clk 0:00:20]} 22. Nd2 {[%clk 0:00:45.9]} 22... Nf2
{[%clk 0:00:19.4]} 23. Qf3 {[%clk 0:00:31.1]} 23... Qg6+ {[%clk 0:00:09.8]} 24.
e4 {[%clk 0:00:21]} 24... Nxe4 {[%clk 0:00:09]} 25. Nxe4 {[%clk 0:00:19.8]}
25... Qxe4+ {[%clk 0:00:08.6]} 26. Qxe4+ {[%clk 0:00:19.7]} 26... dxe4 {[%clk
0:00:10.5]} 27. Bxe4 {[%clk 0:00:20.3]} 27... O-O-O {[%clk 0:00:12]} 28. Rad1
{[%clk 0:00:17.3]} 28... Rxd1 {[%clk 0:00:11.3]} 29. Rxd1 {[%clk 0:00:12.7]}
29... Bxa2 {[%clk 0:00:12.7]} 30. Bf5+ {[%clk 0:00:09.8]} 30... Be6 {[%clk
0:00:12.8]} 31. Bd3 {[%clk 0:00:04.1]} 31... Rd8 {[%clk 0:00:11.4]} 0-1

[Event "*** Qualifier 4: Titled Tuesday 3|2 Blitz"]
[Site "Chess.com"]
[Date "2017.04.25"]
[Round "4"]
[White "BogdanDeac"]
[Black "jcibarra"]
[Result "0-1"]
[WhiteElo "2562"]
[BlackElo "2686"]
[TimeControl "180+2"]
[EndTime "13:49:13 PDT"]
[Termination "jcibarra won by resignation"]

1. d4 {[%clk 0:03:02]} 1... Nf6 {[%clk 0:03:00.8]} 2. Bf4 {[%clk 0:03:01.9]}
2... d6 {[%clk 0:03:01.8]} 3. Nc3 {[%clk 0:02:59]} 3... Nbd7 {[%clk 0:02:43.2]}
4. Nf3 {[%clk 0:02:58.9]} 4... c6 {[%clk 0:02:38.3]} 5. e4 {[%clk 0:02:57.8]}
5... Qa5 {[%clk 0:02:39.2]} 6. Bd2 {[%clk 0:02:54.3]} 6... e5 {[%clk 0:02:38.3]}
7. Bc4 {[%clk 0:02:21.8]} 7... exd4 {[%clk 0:02:30.6]} 8. Nd5 {[%clk 0:02:10]}
8... Qd8 {[%clk 0:02:27.1]} 9. Nxf6+ {[%clk 0:02:09.8]} 9... Nxf6 {[%clk
0:02:24.9]} 10. Ng5 {[%clk 0:01:53.2]} 10... d5 {[%clk 0:02:24]} 11. exd5 {[%clk
0:01:53]} 11... Nxd5 {[%clk 0:02:24]} 12. O-O {[%clk 0:01:33.5]} 12... Be7
{[%clk 0:02:24.4]} 13. Qh5 {[%clk 0:00:57.3]} 13... g6 {[%clk 0:02:16.1]} 14.
Qh6 {[%clk 0:00:56.9]} 14... Be6 {[%clk 0:01:43.8]} 15. Nxe6 {[%clk 0:00:40.2]}
15... fxe6 {[%clk 0:01:44.8]} 16. Qg7 {[%clk 0:00:41.4]} 16... Kd7 {[%clk
0:01:00.1]} 17. Qxd4 {[%clk 0:00:38.1]} 17... Qb6 {[%clk 0:01:00.9]} 18. Qe4
{[%clk 0:00:33.2]} 18... Rae8 {[%clk 0:01:00]} 19. Bb3 {[%clk 0:00:27]} 19...
Bd6 {[%clk 0:00:43.3]} 20. c4 {[%clk 0:00:23.3]} 20... Nf6 {[%clk 0:00:33]} 21.
Qe2 {[%clk 0:00:21.8]} 21... Kc8 {[%clk 0:00:30.9]} 22. Bc3 {[%clk 0:00:19.2]}
22... Rhf8 {[%clk 0:00:31.4]} 23. Rad1 {[%clk 0:00:18.1]} 23... Qc7 {[%clk
0:00:28.8]} 24. g3 {[%clk 0:00:17.3]} 24... Nd7 {[%clk 0:00:24]} 25. Bc2 {[%clk
0:00:16]} 25... e5 {[%clk 0:00:23.4]} 26. b4 {[%clk 0:00:14.2]} 26... e4 {[%clk
0:00:23.3]} 27. c5 {[%clk 0:00:13.5]} 27... Be5 {[%clk 0:00:24.4]} 28. Bd2
{[%clk 0:00:14.1]} 28... Nf6 {[%clk 0:00:24.7]} 29. Be3 {[%clk 0:00:12.3]} 29...
Nd5 {[%clk 0:00:25.4]} 30. b5 {[%clk 0:00:11.1]} 30... Nc3 {[%clk 0:00:26.5]}
31. Qg4+ {[%clk 0:00:11.4]} 31... Rf5 {[%clk 0:00:19.3]} 32. b6 {[%clk 0:00:09]}
32... axb6 {[%clk 0:00:19.8]} 33. cxb6 {[%clk 0:00:10]} 33... Qf7 {[%clk
0:00:20.8]} 34. Rde1 {[%clk 0:00:10.4]} 34... h5 {[%clk 0:00:21.5]} 35. Qh3
{[%clk 0:00:11.3]} 35... Qxa2 {[%clk 0:00:19.3]} 36. Bb1 {[%clk 0:00:09.8]}
36... Nxb1 {[%clk 0:00:18.5]} 37. Rxb1 {[%clk 0:00:10.2]} 37... Qe6 {[%clk
0:00:20.2]} 38. Rfd1 {[%clk 0:00:09.2]} 38... Rf3 {[%clk 0:00:21.3]} 39. Qf1
{[%clk 0:00:09.2]} 39... h4 {[%clk 0:00:20.8]} 40. Qe2 {[%clk 0:00:08.5]} 40...
hxg3 {[%clk 0:00:22]} 41. fxg3 {[%clk 0:00:10.4]} 41... Rh8 {[%clk 0:00:22.3]}
42. Bf2 {[%clk 0:00:09.7]} 42... Qh3 {[%clk 0:00:21.5]} 43. Be1 {[%clk
0:00:09.6]} 43... Rf1+ {[%clk 0:00:22.2]} 0-1

[Event "*** Qualifier 4: Titled Tuesday 3|2 Blitz"]
[Site "Chess.com"]
[Date "2017.04.25"]
[Round "4"]
[White "Sebastian"]
[Black "Rikikits"]
[Result "1-0"]
[WhiteElo "2743"]
[BlackElo "2605"]
[TimeControl "180+2"]
[EndTime "13:49:20 PDT"]
[Termination "Sebastian won on time"]

1. e4 {[%clk 0:03:02]} 1... c5 {[%clk 0:03:00.2]} 2. Nf3 {[%clk 0:03:02.8]} 2...
d6 {[%clk 0:03:01.6]} 3. d4 {[%clk 0:03:04]} 3... cxd4 {[%clk 0:03:03.5]} 4.
Nxd4 {[%clk 0:03:05.3]} 4... Nf6 {[%clk 0:03:04.8]} 5. Nc3 {[%clk 0:03:07]} 5...
Nc6 {[%clk 0:03:05.9]} 6. Bg5 {[%clk 0:03:07.5]} 6... Qb6 {[%clk 0:03:06]} 7.
Nb3 {[%clk 0:03:03.8]} 7... e6 {[%clk 0:03:06.3]} 8. Bxf6 {[%clk 0:03:04.9]}
8... gxf6 {[%clk 0:03:06.8]} 9. Qd2 {[%clk 0:03:06.6]} 9... a6 {[%clk
0:03:06.8]} 10. O-O-O {[%clk 0:03:06.9]} 10... Qc7 {[%clk 0:03:08.2]} 11. f4
{[%clk 0:03:07.3]} 11... b5 {[%clk 0:03:09.2]} 12. Kb1 {[%clk 0:03:07.8]} 12...
Bb7 {[%clk 0:03:04.2]} 13. Bd3 {[%clk 0:03:07]} 13... O-O-O {[%clk 0:03:03.7]}
14. Rhf1 {[%clk 0:03:03.3]} 14... Kb8 {[%clk 0:03:01.8]} 15. Qf2 {[%clk
0:02:46.7]} 15... Rc8 {[%clk 0:02:59.1]} 16. a3 {[%clk 0:02:42.4]} 16... b4
{[%clk 0:02:42.3]} 17. axb4 {[%clk 0:02:40]} 17... Nxb4 {[%clk 0:02:44.2]} 18.
Qd4 {[%clk 0:02:37.3]} 18... Nc6 {[%clk 0:02:27.5]} 19. Qa4 {[%clk 0:02:18.6]}
19... Qb6 {[%clk 0:02:22.9]} 20. Nd2 {[%clk 0:01:47.7]} 20... Na5 {[%clk
0:02:06.3]} 21. Nc4 {[%clk 0:01:30.9]} 21... Nxc4 {[%clk 0:01:57.7]} 22. Bxc4
{[%clk 0:01:32.8]} 22... f5 {[%clk 0:01:52.3]} 23. exf5 {[%clk 0:01:15.7]} 23...
d5 {[%clk 0:01:52.9]} 24. Bb3 {[%clk 0:01:15.9]} 24... Bg7 {[%clk 0:01:41.5]}
25. fxe6 {[%clk 0:01:16.5]} 25... fxe6 {[%clk 0:01:42]} 26. f5 {[%clk
0:01:17.9]} 26... Bxc3 {[%clk 0:01:25.6]} 27. bxc3 {[%clk 0:01:18.6]} 27... e5
{[%clk 0:01:22.3]} 28. f6 {[%clk 0:01:13.8]} 28... Ka7 {[%clk 0:00:59.3]} 29. f7
{[%clk 0:01:08.4]} 29... Rhf8 {[%clk 0:00:58.6]} 30. Rf5 {[%clk 0:01:01.4]}
30... Rxc3 {[%clk 0:00:42.6]} 31. Rdf1 {[%clk 0:00:57.8]} 31... e4 {[%clk
0:00:36.6]} 32. Qa3 {[%clk 0:00:44.7]} 32... Rcc8 {[%clk 0:00:35.6]} 33. Qe7
{[%clk 0:00:30.9]} 33... Ka8 {[%clk 0:00:28.4]} 34. Rf6 {[%clk 0:00:28]} 34...
Qb5 {[%clk 0:00:27.4]} 35. R1f5 {[%clk 0:00:23.7]} 35... a5 {[%clk 0:00:23.8]}
36. Qa3 {[%clk 0:00:16.1]} 36... e3 {[%clk 0:00:21.8]} 37. Re5 {[%clk
0:00:14.4]} 37... e2 {[%clk 0:00:19.3]} 38. Ka2 {[%clk 0:00:15.7]} 38... Ka7
{[%clk 0:00:16.9]} 39. Rf2 {[%clk 0:00:14.5]} 39... Rc3 {[%clk 0:00:11.2]} 40.
Qxf8 {[%clk 0:00:12]} 40... a4 {[%clk 0:00:11.9]} 41. Qa3 {[%clk 0:00:12.6]}
41... Rxc2+ {[%clk 0:00:04.9]} 42. Bxc2 {[%clk 0:00:12.6]} 42... Qc4+ {[%clk
0:00:06.8]} 43. Kb1 {[%clk 0:00:11.3]} 1-0